fUSD/lending_fUSD_20260423
["ID","MTS","AMOUNT","RATE_DAILY","PERIOD"]
[421004050,1776901846850,-279.0,9.831e-05,3]
[421004052,1776901846859,-9008.0189,9.9e-05,2]
[421004054,1776901846868,-6200.0,9.9e-05,3]
[421004056,1776901846877,-2351.0,9.906e-05,2]
[421004058,1776901846886,-1500.0,9.935e-05,2]
[421004060,1776901846895,-150.0,9.942e-05,2]
[421004062,1776901846904,-152.0,9.945e-05,3]
[421004064,1776901846913,-200.0,0.0001,2]
[421004066,1776901846922,-500.0,0.0001,2]
[421004068,1776901846931,-151.0,0.0001,2]
[421004070,1776901846940,-500.0,0.0001,2]
[421004072,1776901846950,-151.0,0.0001,2]
[421004074,1776901846959,-500.0,0.0001,2]
[421004076,1776901846968,-151.0,0.0001,2]
[421004078,1776901846978,-500.0,0.0001,2]
[421004080,1776901846987,-151.0,0.0001,2]
[421004082,1776901846997,-500.0,0.0001,2]
[421004084,1776901847006,-500.0,0.0001,2]
[421004086,1776901847015,-151.0,0.0001,2]
[421004088,1776901847024,-151.0,0.0001,2]
[421004090,1776901847034,-500.0,0.0001,2]
[421004092,1776901847043,-151.0,0.0001,2]
[421004094,1776901847053,-500.0,0.0001,2]
[421004096,1776901847062,-500.0,0.0001,2]
[421004098,1776901847071,-151.0,0.0001,2]
[421004100,1776901847082,-500.0,0.0001,2]
[421004102,1776901847091,-500.0,0.0001,2]
[421004104,1776901847100,-151.0,0.0001,2]
[421004106,1776901847110,-151.0,0.0001,2]
[421004108,1776901847119,-151.0,0.0001,2]
[421004110,1776901847128,-500.0,0.0001,2]
[421004112,1776901847138,-500.0,0.0001,2]
[421004114,1776901847148,-500.0,0.0001,2]
[421004115,1776901847158,-500.0,0.0001,2]
[421004117,1776901847168,-500.0,0.0001,2]
[421004119,1776901847178,-500.0,0.0001,2]
[421004121,1776901847188,-500.0,0.0001,2]
[421004123,1776901847197,-8300.0,0.0001,3]
[421004125,1776901847206,-500.0,0.0001,2]
[421004127,1776901847216,-500.0,0.0001,2]
[421004129,1776901847226,-996.38257538,0.0001,2]
[421004131,1776901847235,-894.29030009,0.0001,2]
[421004133,1776901847245,-440.8024703,0.0001,2]
[421004135,1776901847254,-150.0,0.00010011,2]
[421004137,1776901847263,-433.0,0.00010059,2]
[421004139,1776901847273,-233.51889341,0.0001007,2]
[421004141,1776901847282,-194.72792766,0.0001007,2]
[421004143,1776901847292,-416.26,0.000101,2]
[421004145,1776901847302,-150.0,0.00010149,2]
[421004147,1776901847311,-206.315265,0.00010168,2]
[421004149,1776901847321,-2426.0,0.000102,5]
[421004151,1776901847330,-500.0,0.00010201,2]
[421004153,1776901847340,-500.0,0.00010201,2]
[421004155,1776901847349,-500.0,0.00010201,2]
[421004157,1776901847359,-500.0,0.00010201,2]
[421004159,1776901847368,-500.0,0.00010201,2]
[421004161,1776901847377,-500.0,0.00010201,2]
[421004163,1776901847386,-500.0,0.00010201,2]
[421004165,1776901847395,-500.0,0.00010201,2]
[421004167,1776901847404,-500.0,0.00010201,2]
[421004169,1776901847414,-500.0,0.00010201,2]
[421004171,1776901847424,-500.0,0.00010201,2]
[421004173,1776901847433,-176.0,0.00010201,2]
[421004175,1776901847443,-450.0,0.00010201,2]
[421004177,1776901847452,-450.0,0.00010201,2]
[421004179,1776901847462,-450.0,0.00010201,2]
[421004181,1776901847472,-450.0,0.00010201,2]
[421004183,1776901847482,-450.0,0.00010201,2]
[421004185,1776901847493,-450.0,0.00010201,2]
[421004187,1776901847503,-450.0,0.00010201,2]
[421004189,1776901847512,-450.0,0.00010201,2]
[421004191,1776901847522,-450.0,0.00010201,2]
[421004193,1776901847531,-450.0,0.00010201,2]
[421004195,1776901847540,-450.0,0.00010201,2]
[421004197,1776901847549,-450.0,0.00010201,2]
[421004199,1776901847558,-450.0,0.00010201,2]
[421004201,1776901847567,-450.0,0.00010201,2]
[421004203,1776901847577,-450.0,0.00010201,2]
[421004205,1776901847587,-450.0,0.00010201,2]
[421004207,1776901847596,-450.0,0.00010201,2]
[421004209,1776901847605,-450.0,0.00010201,2]
[421004211,1776901847614,-450.0,0.00010201,2]
[421004213,1776901847624,-450.0,0.00010201,2]
[421004215,1776901847634,-450.0,0.00010201,2]
[421004217,1776901847642,-450.0,0.00010201,2]
[421004219,1776901847652,-450.0,0.00010201,2]
[421004221,1776901847662,-456.56494773,0.00010201,2]
[421004224,1776901847673,-373.26,0.00010201,2]
[421004226,1776901847682,-200.0,0.00010231,2]
[421004228,1776901847692,-1592.87721993,0.00010231,2]
[421004230,1776901847701,-152.0,0.00010232,4]
[421004231,1776901847711,-783.14389371,0.0001025,2]
[421004233,1776901847720,-350.0,0.00010255,2]
[421004235,1776901847730,-799.9394732,0.00010316,2]
[421004237,1776901847739,-250.0,0.00010317,2]
[421004239,1776901847748,-350.0,0.00010327,2]
[421004241,1776901847757,-350.0,0.00010348,2]
[421004243,1776901847766,-150.0,0.00010356,2]
[421004245,1776901847775,-150.0,0.00010356,2]
[421004247,1776901847785,-150.0,0.00010356,2]
[421004249,1776901847793,-150.0,0.00010356,2]
[421004251,1776901847803,-151.0,0.00010375,2]
[421004253,1776901847812,-309.124798,0.00010375,2]
[421004255,1776901847821,-309.124798,0.00010375,2]
[421004257,1776901847831,-309.124798,0.00010375,2]
[421004259,1776901847840,-309.124798,0.00010375,2]
[421004261,1776901847849,-150.0,0.00010375,2]
[421004263,1776901847858,-151.0,0.00010375,2]
[421004265,1776901847868,-151.0,0.00010375,2]
[421004267,1776901847878,-639.048094,0.00010375,2]
[421004269,1776901847888,-639.048094,0.00010375,2]
[421004271,1776901847897,-639.048094,0.00010375,2]
[421004273,1776901847907,-639.048094,0.00010375,2]
[421004275,1776901847916,-1500000.0,0.00010375,2]
[421004277,1776901847925,-151.0,0.00010401,2]
[421004279,1776901847935,-150.0,0.00010416,3]
[421004281,1776901847944,-168.8570491,0.00010416,3]
[421004283,1776901847954,-150.0,0.00010416,3]
[421004285,1776901847963,-150.17997214,0.00010416,3]
[421004287,1776901847973,-373.26,0.00010475,2]
[421004289,1776901847982,-2201.0,0.00010475,5]
[421004291,1776901847992,-1117.0,0.00010499,2]
[421004293,1776901848002,-152.0,0.00010519,5]
[421004295,1776901848011,-167.0,0.00010539,2]
[421004297,1776901848020,-193.30678905,0.00010539,2]
[421004299,1776901848030,-200.0,0.00010548,2]
[421004301,1776901848039,-200.0,0.0001057,2]
[421004303,1776901848049,-2000.0,0.00010577,2]
[421004305,1776901848058,-33083.9584,0.00010577,2]
[421004307,1776901848067,-205.2782,0.00010577,2]
[421004309,1776901848077,-210.46991856,0.00010577,2]
[421004311,1776901848086,-214.79047105,0.00010577,2]
[421004312,1776901848095,-9648.29552194,0.00010577,2]
[421004315,1776901848105,-2000.0,0.0001058,2]
[421004316,1776901848114,-2000.0,0.0001058,2]
[421004318,1776901848123,-279.0,0.00010591,3]
[421004320,1776901848132,-2000.0,0.000106,2]
[421004322,1776901848141,-242.15909246,0.00010618,2]
[421004324,1776901848151,-201.93286099,0.00010618,2]
[421004326,1776901848160,-2000.0,0.0001063,2]
[421004328,1776901848170,-281.42,0.00010658,2]
[421004330,1776901848179,-58294.76231791,0.00010677,2]
[421004335,1776901848213,-387.372,0.00010677,2]
[421004337,1776901848224,-123040.21792563,0.00010677,2]
[421004643,1776901977495,150.0,0.00011233,120]
[421004644,1776902192232,653.0,7.644e-05,2]
[421004677,1776903033007,-300.0,7.8e-05,2]
[421004678,1776903033031,-700.0,7.8e-05,2]
[421004679,1776903033042,-250.0,7.85e-05,2]
[421004680,1776903033053,-2052.16045395,7.9e-05,2]
[421004681,1776903033122,-47.83954605,7.9e-05,2]
[421004682,1776903033134,-3200.0,8e-05,2]
[421004683,1776903033146,-1200.0,8.01e-05,2]
[421004684,1776903033157,-2680.141,8.011e-05,2]
[421004685,1776903033169,-181.231,8.011e-05,2]
[421004686,1776903033180,-150.0,8.073e-05,2]
[421004687,1776903033192,-609.67197532,8.074e-05,2]
[421004688,1776903033203,-500.0,8.074e-05,2]
[421004689,1776903033215,-500.0,8.074e-05,2]
[421004690,1776903033226,-500.0,8.074e-05,2]
[421004691,1776903033237,-500.0,8.074e-05,2]
[421004692,1776903033249,-500.0,8.074e-05,2]
[421004693,1776903033260,-236.06521907,8.074e-05,2]
[421004694,1776903033271,-500.0,8.074e-05,2]
[421004695,1776903033281,-500.0,8.074e-05,2]
[421004696,1776903033292,-500.0,8.074e-05,2]
[421004697,1776903033304,-287.19665901,8.074e-05,2]
[421004698,1776903033315,-500.0,8.074e-05,2]
[421004699,1776903033326,-500.0,8.074e-05,2]
[421004700,1776903033337,-500.0,8.074e-05,2]
[421004701,1776903033348,-500.0,8.074e-05,2]
[421004702,1776903033359,-500.0,8.074e-05,2]
[421004703,1776903033371,-500.0,8.074e-05,2]
[421004704,1776903033382,-500.0,8.074e-05,2]
[421004705,1776903033394,-439.16641253,8.074e-05,2]
[421004706,1776903033406,-500.0,8.074e-05,2]
[421004707,1776903033417,-292.96663345,8.074e-05,2]
[421004708,1776903033428,-500.0,8.074e-05,2]
[421004709,1776903033440,-211.62085043,8.074e-05,2]
[421004710,1776903033451,-399.63230907,8.074e-05,2]
[421004711,1776903033462,-500.0,8.074e-05,2]
[421004712,1776903033474,-500.0,8.074e-05,2]
[421004713,1776903033486,-339.19347396,8.074e-05,2]
[421004714,1776903033498,-500.0,8.074e-05,2]
[421004715,1776903033509,-434.40253162,8.074e-05,2]
[421004716,1776903033521,-500.0,8.074e-05,2]
[421004717,1776903033533,-500.0,8.074e-05,2]
[421004718,1776903033545,-500.0,8.074e-05,2]
[421004719,1776903033556,-500.0,8.074e-05,2]
[421004720,1776903033568,-500.0,8.074e-05,2]
[421004721,1776903033580,-500.0,8.074e-05,2]
[421004722,1776903033592,-500.0,8.074e-05,2]
[421004723,1776903033604,-500.0,8.074e-05,2]
[421004724,1776903033616,-500.0,8.074e-05,2]
[421004725,1776903033628,-500.0,8.074e-05,2]
[421004726,1776903033640,-500.0,8.074e-05,2]
[421004727,1776903033651,-500.0,8.074e-05,2]
[421004728,1776903033663,-500.0,8.074e-05,2]
[421004729,1776903033675,-418.97905582,8.074e-05,2]
[421004730,1776903033687,-500.0,8.074e-05,2]
[421004731,1776903033698,-500.0,8.074e-05,2]
[421004732,1776903033710,-500.0,8.074e-05,2]
[421004733,1776903033721,-500.0,8.074e-05,2]
[421004734,1776903033734,-500.0,8.074e-05,2]
[421004735,1776903033746,-500.0,8.074e-05,2]
[421004736,1776903033759,-500.0,8.074e-05,2]
[421004737,1776903033771,-500.0,8.074e-05,2]
[421004738,1776903033783,-500.0,8.074e-05,2]
[421004739,1776903033795,-500.0,8.074e-05,2]
[421004740,1776903033808,-500.0,8.074e-05,2]
[421004741,1776903033820,-500.0,8.074e-05,2]
[421004742,1776903033832,-500.0,8.074e-05,2]
[421004743,1776903033843,-442192.9421,8.075e-05,2]
[421004744,1776903033856,-904.7607,8.075e-05,2]
[421004745,1776903033869,-150.0,8.173e-05,2]
[421004746,1776903033881,-1600.0,8.208e-05,2]
[421004747,1776903033893,-231.49,8.214e-05,2]
[421004748,1776903033905,-500.0,8.219e-05,2]
[421004749,1776903033917,-500.0,8.219e-05,2]
[421004750,1776903033929,-500.0,8.219e-05,2]
[421004751,1776903033940,-500.0,8.219e-05,2]
[421004752,1776903033953,-633.42703327,8.219e-05,2]
[421004753,1776903033964,-300.0,8.219e-05,2]
[421004754,1776903033979,-30655.43316238,8.263e-05,2]
[421004755,1776903033994,-12880.97863727,8.263e-05,2]
[421004756,1776903034009,-843.14089656,8.263e-05,2]
[421004757,1776903034022,-3463.850232,8.263e-05,2]
[421004758,1776903034065,-462.11065713,8.263e-05,2]
[421004759,1776903034083,-500.91157275,8.263e-05,2]
[421004760,1776903034096,-306.16488727,8.263e-05,2]
[421004761,1776903034110,-322.59321388,8.263e-05,2]
[421004762,1776903035889,-3636.70979748,8.263e-05,2]
[421004765,1776903037584,-180.05,8.211e-05,2]
[421004766,1776903037594,-103.95,8.263e-05,2]
[421004767,1776903037605,-1829.48085355,8.263e-05,2]
[421004768,1776903037617,-3993.23444947,8.263e-05,2]
[421004769,1776903037694,-943.95867498,8.263e-05,2]
[421004770,1776903037706,-308.5174995,8.263e-05,2]
[421004771,1776903037717,-903.93718342,8.263e-05,2]
[421004772,1776903037729,-30383.85516234,8.263e-05,2]
[421004773,1776903037766,-86663.65364148,8.263e-05,2]
[421004774,1776903037780,-307.76070131,8.263e-05,2]
[421004775,1776903037792,-2603.83148825,8.263e-05,2]
[421004849,1776903039659,-430.4257349,8.263e-05,2]
[421004850,1776903039671,-4750.7671277,8.263e-05,2]
[421004851,1776903039713,-5186.96950047,8.263e-05,2]
[421004852,1776903040032,-13438.89564265,8.263e-05,2]
[421004853,1776903040044,-350.33533698,8.263e-05,2]
[421004854,1776903040061,-519.56113632,8.263e-05,2]
[421004855,1776903040074,-3600.0,8.263e-05,2]
[421004856,1776903040086,-892.18335078,8.263e-05,2]
[421004857,1776903040098,-332.67356673,8.263e-05,2]
[421004858,1776903040140,-1101.43192148,8.263e-05,2]
[421004859,1776903040218,-1902.07,8.263e-05,2]
[421004860,1776903040231,-794.0800775,8.263e-05,2]
[421004861,1776903040244,-325.93287672,8.263e-05,2]
[421004893,1776903042567,-10636.64423464,8.263e-05,2]
[421004894,1776903042621,-970.18063068,8.263e-05,2]
[421004895,1776903042635,-783.385,8.263e-05,2]
[421004896,1776903042677,-3611.23115143,8.263e-05,2]
[421004897,1776903042687,-464.29,8.274e-05,2]
[421004898,1776903042698,-23460.32,8.274e-05,2]
[421004899,1776903042709,-4999.99,8.274e-05,2]
[421004900,1776903042719,-299.99,8.274e-05,2]
[421004901,1776903042729,-10717.75,8.274e-05,2]
[421004902,1776903042739,-2000.0,8.274e-05,2]
[421004903,1776903042750,-260.03,8.274e-05,2]
[421004904,1776903042761,-300.0,8.58e-05,2]
[421004905,1776903042771,-300.0,8.58e-05,2]
[421004906,1776903042781,-300.0,8.58e-05,2]
[421004907,1776903042792,-300.0,8.58e-05,2]
[421004908,1776903042802,-300.0,8.58e-05,2]
[421004909,1776903042812,-250.0,8.58e-05,2]
[421004910,1776903042823,-250.0,8.58e-05,2]
[421004911,1776903042832,-447.11612569,8.58e-05,2]
[421004912,1776903042843,-166.66,8.742e-05,2]
[421004913,1776903042852,-1000.0,8.754e-05,2]
[421004914,1776903042863,-9999.99,8.754e-05,2]
[421004915,1776903042873,-9886.07,8.754e-05,2]
[421004916,1776903042883,-9999.99,8.754e-05,2]
[421004917,1776903042894,-437.66,8.754e-05,2]
[421004918,1776903042903,-150.99,8.754e-05,2]
[421004919,1776903042914,-3861.95,8.754e-05,2]
[421004920,1776903042923,-1680.0,8.811e-05,2]
[421004921,1776903042934,-255.0,8.88e-05,2]
[421004922,1776903042944,-1950.0,8.898e-05,5]
[421004923,1776903042958,-1563.0,8.898e-05,5]
[421004924,1776903042968,-578.20924308,8.941e-05,2]
[421004925,1776903042978,-500.0,8.941e-05,2]
[421004926,1776903042988,-200.0,8.941e-05,2]
[421004928,1776903042998,-721.12765535,8.941e-05,2]
[421004929,1776903043008,-4824.33007886,8.941e-05,2]
[421004940,1776903045288,-4727.83778661,8.941e-05,2]
[421004941,1776903045298,-200.0,8.941e-05,2]
[421004942,1776903045307,-151.0,8.941e-05,2]
[421004943,1776903045316,-743.50770149,8.941e-05,2]
[421004944,1776903045330,-209.40437684,8.941e-05,2]
[421004945,1776903045339,-151.0,8.941e-05,2]
[421004946,1776903045348,-235.75327194,8.941e-05,2]
[421004947,1776903045358,-244.476143,8.941e-05,2]
[421004948,1776903045367,-253.52176029,8.941e-05,2]
[421004949,1776903045376,-262.90206542,8.941e-05,2]
[421004950,1776903045387,-272.62944185,8.941e-05,2]
[421004951,1776903045396,-282.71673119,8.941e-05,2]
[421004952,1776903045406,-293.17725025,8.941e-05,2]
[421004954,1776903045415,-304.02480851,8.941e-05,2]
[421004956,1776903045425,-315.27372642,8.941e-05,2]
[421004958,1776903045434,-418.78546966,8.941e-05,2]
[421004960,1776903045443,-174.61919141,8.941e-05,2]
[421004962,1776903045453,-693.3919763,8.941e-05,2]
[421004964,1776903045462,-279.9045709,8.941e-05,2]
[421004966,1776903045472,-209.40437684,8.941e-05,2]
[421004968,1776903045481,-500.0,8.996e-05,2]
[421004970,1776903045490,-151.0,8.996e-05,2]
[421004972,1776903045499,-4200.0,9e-05,3]
[421004973,1776903045508,-166.66,9.031e-05,2]
[421004974,1776903045518,-500.0,9.051e-05,2]
[421004975,1776903045527,-151.0,9.051e-05,2]
[421004976,1776903045537,-500.0,9.106e-05,2]
[421004977,1776903045546,-151.0,9.106e-05,2]
[421004978,1776903045556,-151.0,9.161e-05,2]
[421004979,1776903045565,-500.0,9.161e-05,2]
[421004980,1776903045575,-152.0,9.161e-05,2]
[421004981,1776903045584,-183.57157804,9.161e-05,2]
[421004982,1776903045594,-152.0,9.161e-05,2]
[421004983,1776903045603,-151.0,9.216e-05,2]
[421004984,1776903045612,-500.0,9.216e-05,2]
[421004985,1776903045622,-1600.0,9.233e-05,2]
[421004986,1776903045632,-151.0,9.271e-05,2]
[421004987,1776903045642,-500.0,9.271e-05,2]
[421004988,1776903045652,-166.66,9.319e-05,2]
[421004989,1776903045661,-151.0,9.326e-05,2]
[421004990,1776903045670,-500.0,9.326e-05,2]
[421004991,1776903045679,-150.0,9.373e-05,2]
[421004992,1776903045688,-150.0,9.373e-05,2]
[421004993,1776903045698,-150.0,9.373e-05,2]
[421004994,1776903045707,-150.0,9.373e-05,2]
[421004995,1776903045716,-164.225,9.373e-05,2]
[421004996,1776903045725,-623.0,9.373e-05,2]
[421004997,1776903045734,-3530.0,9.373e-05,2]
[421004998,1776903045744,-1048.0,9.373e-05,2]
[421004999,1776903045753,-150.0,9.373e-05,2]
[421005000,1776903045763,-1265.0,9.373e-05,2]
[421005001,1776903045772,-1219.0,9.373e-05,2]
[421005002,1776903045785,-927.0,9.373e-05,2]
[421005003,1776903045795,-807.60159,9.373e-05,2]
[421005005,1776903046065,-338.89006486,9.259e-05,2]
[421005006,1776903046077,-77.10993514,9.259e-05,2]
[421005007,1776903046086,-1666.39841,9.373e-05,2]
[421005008,1776903046096,-3780.0,9.373e-05,2]
[421005009,1776903046105,-151.0,9.381e-05,2]
[421005010,1776903046115,-500.0,9.381e-05,2]
[421005011,1776903046125,-151.0,9.436e-05,2]
[421005012,1776903046135,-500.0,9.436e-05,2]
[421005013,1776903046144,-200.0,9.489e-05,2]
[421005014,1776903046154,-108.44381419,9.489e-05,2]
[421005015,1776903046165,-108.70852459,9.489e-05,2]
[421005016,1776903046175,-181.08010149,9.489e-05,2]
[421005017,1776903046184,-151.0,9.491e-05,2]
[421005018,1776903046193,-500.0,9.491e-05,2]
[421005019,1776903046202,-166.66,9.608e-05,2]
[421005020,1776903046212,-2351.0,9.692e-05,2]
[421005021,1776903046221,-82.71474375,9.702e-05,2]
[421005022,1776903046233,-77.28525625,9.702e-05,2]
[421005023,1776903046243,-433.0,9.768e-05,2]
[421005024,1776903046252,-166.66,9.896e-05,2]
[421005025,1776903046262,-200.0,0.0001,2]
[421005026,1776903046271,-500.0,0.0001,2]
[421005027,1776903046281,-151.0,0.0001,2]
[421005028,1776903046290,-500.0,0.0001,2]
[421005029,1776903046300,-151.0,0.0001,2]
[421005030,1776903046309,-500.0,0.0001,2]
[421005031,1776903046318,-151.0,0.0001,2]
[421005032,1776903046328,-500.0,0.0001,2]
[421005033,1776903046338,-151.0,0.0001,2]
[421005034,1776903046348,-500.0,0.0001,2]
[421005035,1776903046358,-151.0,0.0001,2]
[421005036,1776903046368,-500.0,0.0001,2]
[421005037,1776903046378,-151.0,0.0001,2]
[421005038,1776903046388,-500.0,0.0001,2]
[421005039,1776903046401,-151.0,0.0001,2]
[421005040,1776903046418,-500.0,0.0001,2]
[421005041,1776903046438,-151.0,0.0001,2]
[421005042,1776903046449,-500.0,0.0001,2]
[421005043,1776903046458,-151.0,0.0001,2]
[421005044,1776903046468,-500.0,0.0001,2]
[421005045,1776903046478,-151.0,0.0001,2]
[421005046,1776903046487,-500.0,0.0001,2]
[421005047,1776903046496,-151.0,0.0001,2]
[421005048,1776903046507,-533.29298214,0.0001,2]
[421005049,1776903046517,-533.29298212,0.00010004,2]
[421005050,1776903046527,-200.0,0.00010037,2]
[421005051,1776903046537,-225.18697532,0.00010037,2]
[421005052,1776903046547,-187.78006525,0.00010037,2]
[421005053,1776903046556,-270.01,0.000101,2]
[421005054,1776903046567,-651.39856238,0.000101,2]
[421005055,1776903046579,-295.84999999,0.000101,2]
[421005056,1776903046606,-999.0,0.000101,2]
[421005057,1776903046618,-378.17899761,0.000101,2]
[421005058,1776903046632,-554.70244002,0.000101,2]
[421005059,1776903046642,-17.12701456,0.000101,2]
[421005066,1776903625244,164.25,7.7e-05,2]
[421005072,1776903868211,182.21,6.232e-05,2]
[421005075,1776903916554,150.0,7.249e-05,2]
[421005076,1776903917873,150.0,7.249e-05,2]
[421005077,1776903934915,150.0,7.249e-05,2]
[421005078,1776903934966,150.0,7.364e-05,2]
[421005079,1776903935007,150.0,7.479e-05,2]
[421005080,1776903935053,150.0,7.595e-05,2]
[421005081,1776903935277,150.0,7.249e-05,2]
[421005082,1776903962352,-150.0,7.71e-05,2]
[421005094,1776904232995,-1000.0,7.8e-05,2]
[421005095,1776904233006,-235.11022874,7.812e-05,2]
[421005096,1776904233015,-150.0,7.825e-05,2]
[421005097,1776904233025,-2100.0,7.9e-05,2]
[421005098,1776904233035,-150.0,7.94e-05,2]
[421005099,1776904233045,-1200.0,7.963e-05,2]
[421005100,1776904233055,-169.0,7.963e-05,2]
[421005101,1776904233064,-2058.48977126,7.964e-05,2]
[421005102,1776904233083,-643.82857995,7.964e-05,2]
[421005103,1776904233094,-35909.52551218,7.964e-05,2]
[421005104,1776904233105,-904.63772545,7.964e-05,2]
[421005105,1776904233117,-437.436765,7.964e-05,2]
[421005106,1776904233132,-705.60574616,7.964e-05,2]
[421005107,1776904233142,-150.0,7.974e-05,2]
[421005108,1776904233152,-5565.4055,7.975e-05,2]
[421005109,1776904233162,-1500.0,7.975e-05,2]
[421005110,1776904233172,-499.91777115,8e-05,2]
[421005111,1776904233186,-260.03248731,8e-05,2]
[421005112,1776904233270,-2440.04974154,8e-05,2]
[421005113,1776904233279,-168.08915604,8.055e-05,2]
[421005114,1776904233289,-2384.0,8.055e-05,2]
[421005115,1776904233299,-151.0,8.072e-05,2]
[421005116,1776904233308,-299.99,8.072e-05,2]
[421005117,1776904233318,-1212.74,8.072e-05,2]
[421005118,1776904233327,-150.99,8.072e-05,2]
[421005119,1776904233336,-4999.99,8.072e-05,2]
[421005120,1776904233346,-2543.82,8.073e-05,2]
[421005121,1776904233356,-181.92,8.073e-05,2]
[421005122,1776904233366,-4116.10746344,8.073e-05,2]
[421005123,1776904233390,-2349.99999995,8.073e-05,2]
[421005124,1776904233468,-699.0,8.073e-05,2]
[421005125,1776904233480,-2834.88253661,8.073e-05,2]
[421005126,1776904233490,-9999.99,8.073e-05,2]
[421005127,1776904233499,-150.0,8.074e-05,2]
[421005128,1776904233509,-2058.84,8.079e-05,2]
[421005129,1776904233519,-500.0,8.079e-05,3]
[421005130,1776904233528,-4379.655159,8.178e-05,2]
[421005131,1776904233538,-166.27,8.219e-05,2]
[421005132,1776904233547,-150.0,8.274e-05,2]
[421005133,1776904233557,-300.0,8.58e-05,2]
[421005134,1776904233566,-300.0,8.58e-05,2]
[421005135,1776904233576,-300.0,8.58e-05,2]
[421005136,1776904233586,-300.0,8.58e-05,2]
[421005137,1776904233595,-300.0,8.58e-05,2]
[421005138,1776904233605,-250.0,8.58e-05,2]
[421005139,1776904233615,-166.27,8.676e-05,2]
[421005140,1776904233624,-2144.6,8.712e-05,2]
[421005141,1776904233633,-1680.0,8.76e-05,2]
[421005142,1776904233643,-255.0,8.771e-05,2]
[421005143,1776904233652,-166.27,9.132e-05,2]
[421005144,1776904233662,-150.0,9.442e-05,2]
[421005145,1776904233672,-1265.0,9.442e-05,2]
[421005146,1776904233683,-1219.0,9.442e-05,2]
[421005147,1776904233692,-927.0,9.442e-05,2]
[421005148,1776904233702,-200.0,9.459e-05,2]
[421005149,1776904233712,-578.20924308,9.46e-05,2]
[421005150,1776904233721,-1428.38747117,9.46e-05,2]
[421005151,1776904233730,-209.40437685,9.46e-05,2]
[421005152,1776904233740,-721.12765535,9.46e-05,2]
[421005153,1776904233752,-500.0,9.46e-05,2]
[421005154,1776904233761,-200.0,9.46e-05,2]
[421005155,1776904233771,-209.40437684,9.46e-05,2]
[421005156,1776904233780,-174.61919141,9.46e-05,2]
[421005157,1776904233790,-151.0,9.46e-05,2]
[421005158,1776904233799,-590.0,9.507e-05,2]
[421005159,1776904233809,-500.0,9.515e-05,2]
[421005160,1776904233819,-151.0,9.515e-05,2]
[421005161,1776904233828,-517.97155043,9.534e-05,2]
[421005162,1776904233837,-500.0,9.534e-05,2]
[421005163,1776904233847,-500.0,9.534e-05,2]
[421005164,1776904233856,-501.19607513,9.534e-05,2]
[421005165,1776904233866,-308.01145303,9.534e-05,2]
[421005166,1776904233875,-500.0,9.534e-05,2]
[421005167,1776904233885,-500.0,9.534e-05,2]
[421005168,1776904233894,-500.0,9.534e-05,2]
[421005169,1776904233904,-354.92347881,9.534e-05,2]
[421005170,1776904233913,-500.0,9.534e-05,2]
[421005171,1776904233922,-377.24215328,9.534e-05,2]
[421005172,1776904233933,-500.0,9.534e-05,2]
[421005173,1776904233943,-498.41570608,9.534e-05,2]
[421005174,1776904233952,-214.93361462,9.534e-05,2]
[421005175,1776904233962,-500.0,9.534e-05,2]
[421005176,1776904233971,-500.0,9.534e-05,2]
[421005177,1776904233981,-500.0,9.534e-05,2]
[421005178,1776904233991,-500.0,9.534e-05,2]
[421005179,1776904234000,-500.0,9.534e-05,2]
[421005180,1776904234010,-500.0,9.534e-05,2]
[421005181,1776904234020,-500.0,9.534e-05,2]
[421005182,1776904234030,-500.0,9.534e-05,2]